Cogmind - Beta 17 @@@ ROGUE MODE // 2026.07.19 @ 17:23:29 Player: unq Result: Destroyed by Y-64 Sentinel with KE Penetrator Performance ------------- Evolutions (6) 3000 Regions Visited (11) 2200 Robots Destroyed (87) 435 Value Destroyed (2735) 2735 Prototype IDs (29) 580 Alien Tech Used (0) 0 Bonus (4140) 4140 TOTAL SCORE: 13090 Bonus ------- High Alert Combat Kills 126 Follower Combat Kills 97 Subatomizer Sterilization 3000 Entered DSFs 500 Registered with UFD 300 Met Data Miner 300 Friendly Fire -183 Cogmind --------- Core Integrity 0/1150 Matter 300/300 Energy 99/100 System Corruption 9% Temperature Cool (2) Movement Hovering (110) Ox1 Location -4/Factory Parts ------- > --- POWER (2) -------- (None) > --- PROPULSION (6) --- Improved Gyrokinetic Inverter > --- UTILITY (8) ------ Large Storage Unit Machine Analyzer Enhanced Optical Array Improved Targeting Computer Improved Targeting Computer Improved Target Analyzer > --- WEAPON (3) ------- (None) > --- INVENTORY (15) --- Wheel Medium Matter Pod (100) Experimental Signal Interpreter Hacking Suite High-powered Tractor Beam Advanced Trap Extractor (0/8) Long-range Proton Cannon Heavy Plasma Cannon Coil Gun Mass Driver Enhanced Gauss Cannon Long-range Missile Launcher Improved Remote Datajack Peak State ------------ > --- POWER ------------ Enhanced Nuclear Core Enhanced Nuclear Core > --- PROPULSION ------- Gravmag Array Improved Gyrokinetic Inverter Improved Gyrokinetic Inverter Improved Gyrokinetic Inverter Improved Gyrokinetic Inverter > --- UTILITY ---------- Advanced Heat Sink Large Storage Unit Improved Signal Interpreter Improved Terrain Scanner Microactuators Actuator Array Reaction Control System Improved Focal Shield > --- WEAPON ----------- Force Rifle Power Maul Companion Sword > --- INVENTORY -------- Cooled Aerolev Unit Improved Gyrokinetic Inverter Enhanced Optical Array Improved Sensor Array Experimental Signal Interpreter Hacking Suite High-powered Tractor Beam Advanced Trap Extractor Long-range Proton Cannon Heavy Plasma Cannon Coil Gun Mass Driver Enhanced Gauss Cannon Heavy Gauss Cannon Long-range Missile Launcher [Rating: 100] Favorites ----------- Power Improved Deuterium Engine Engine Improved Deuterium Engine Power Core Enhanced Nuclear Core Reactor Antimatter Reactor Propulsion Light Treads Treads Light Treads Leg Improved VSS Leg Wheel Armored Wheel Hover Unit Improved Gyrokinetic Inverter Flight Unit Field Propulsion Drive Utility High-capacity Storage Unit Device Sensor Array Storage High-capacity Storage Unit Processor Improved Signal Interpreter Protection Hardened Medium Armor Plating Weapon Autogun Energy Gun Improved EM Shotgun Energy Cannon Beam Cannon Ballistic Gun Autogun Ballistic Cannon Magnetic Acceleration Cannon Launcher Heavy Missile Launcher Special Weapon Remote Datajack Impact Weapon Power Maul Slashing Weapon Companion Sword Build | -11 -10 -10 -9 -6 -6 -6 -6 -5 -5 -5 -4 ------- Run | Yrd Mat Sub Scr Fac Low Low Dat Pro Fac DSF Fac Slots Evolved 12 | . . . . 8 . . . . 2 . 2 Power 1 | . . . . 1 . . . . . . . Propulsion 4 | . . . . 3 . . . . . . 1 Utility 6 | . . . . 3 . . . . 2 . 1 Weapon 1 | . . . . 1 . . . . . . . Parts Attached 118 | 7 20 7 4 43 1 . . 3 1 8 24 Power 16 | 1 2 . 1 4 . . . . . 1 7 Engine 11 | 1 2 . 1 3 . . . . . . 4 Core 4 | . . . . 1 . . . . . 1 2 Reactor 1 | . . . . . . . . . . . 1 Propulsion 27 | 2 2 3 1 11 . . . . . 4 4 Treads 11 | 2 2 3 1 3 . . . . . . . Leg 3 | . . . . 3 . . . . . . . Wheel 2 | . . . . 2 . . . . . . . Hover 9 | . . . . 3 . . . . . 2 4 Flight 2 | . . . . . . . . . . 2 . Utility 37 | 2 5 . . 15 . . . 1 1 1 12 Device 21 | 1 2 . . 10 . . . . 1 1 6 Storage 6 | 1 2 . . 1 . . . 1 . . 1 Processor 8 | . . . . 3 . . . . . . 5 Hackware . | . . . . . . . . . . . . Protection 2 | . 1 . . 1 . . . . . . . Artifact . | . . . . . . . . . . . . Weapon 38 | 2 11 4 2 13 1 . . 2 . 2 1 Energy Gun 9 | 2 2 2 . 3 . . . . . . . Energy Cannon 4 | . 2 . . . 1 . . . . 1 . Ballistic Gun 10 | . 4 2 . 4 . . . . . . . Ballistic Cannon 4 | . 1 . . 1 . . . . . 1 1 Launcher 5 | . . . 1 4 . . . . . . . Special Weapon 2 | . 1 . . 1 . . . . . . . Impact Weapon 3 | . 1 . . . . . . 2 . . . Slashing Weapon 1 | . . . 1 . . . . . . . . Piercing Weapon . | . . . . . . . . . . . . Special Melee Weapon . | . . . . . . . . . . . . Unidentified Prototypes 7 | . 1 . 1 5 . . . . . . . Parts Lost 55 | . 1 1 . 24 . . . . . . 29 Power 11 | . . . . 3 . . . . . . 8 Propulsion 17 | . . . . 10 . . . . . . 7 Utility 16 | . 1 . . 5 . . . . . . 10 Weapon 11 | . . 1 . 6 . . . . . . 4 Highest Loss Streak 16 | . 1 1 . 10 . . . . . . 16 To Critical Strikes . | . . . . . . . . . . . . Average Backups 10 | 2 14 17 5 12 9 9 10 9 10 9 12 Power . | . . . . . 1 1 1 1 1 . . Propulsion 2 | 1 2 4 1 2 . . . . . . 1 Utility 2 | . 3 4 . 4 3 3 3 3 3 2 4 Weapon 5 | . 6 6 3 4 5 5 6 5 6 6 6 Tool/Special . | . . . . . . . . . . . . Unused Backups 33 | . 8 4 2 9 . . . . . 2 8 Power 2 | . 2 . . . . . . . . . . Propulsion 9 | . 2 1 . 4 . . . . . . 2 Utility 12 | . 3 2 . 3 . . . . . . 4 Weapon 8 | . 1 . 2 2 . . . . . 2 1 Tool/Special 2 | . . 1 . . . . . . . . 1 Average Slot Usage (%) 91 | . 97 100 100 73 67 66 66 66 58 78 76 Engine 10 | . 14 14 14 6 . . . . . . 1 Treads 22 | . 27 28 28 17 . . . . . . . Hover 2 | . . . . 3 13 13 13 13 11 15 22 Device 14 | . 11 12 14 13 20 20 20 20 17 25 19 Storage 11 | . 14 14 14 6 6 6 6 6 5 5 5 Processor 1 | . . . . 5 6 6 6 6 5 5 8 Energy Gun 4 | . 5 15 . 2 1 . . . . . 2 Ballistic Gun 13 | . 14 10 22 4 . . . . . . . Impact Weapon 1 | . 3 1 . . . . . 5 5 5 3 Slashing Weapon 3 | . . . 5 4 5 6 6 6 5 5 4 Peak Build Rating 100 | 7 13 29 37 59 55 55 55 55 54 83 100 Average Rating 31 | 5 11 14 33 40 51 51 51 50 51 69 79 On Entrance 40 | . 7 13 29 35 51 55 51 55 55 54 83 Avg Prop Armor Cover (%) 7 | . . . . 7 . . . . . 6 . Naked Turns . | . . . . . . . . . . . . Heaviest Build 91 | 13 55 54 61 91 38 28 36 38 29 48 66 Greatest Support 111 | 40 40 40 43 111 29 29 29 29 29 53 72 Greatest Overweight (x) 8 | . 1 1 1 5 1 . 1 1 . . 8 Average Overweight (x) . | . . 1 1 . . . . . . . . Largest Inventory Capacity 20 | 8 20 20 20 20 10 10 10 10 10 10 15 Average Capacity 17 | 7 15 20 20 16 10 10 10 10 10 10 13 Most Carried 20 | 6 18 20 20 20 10 10 10 10 10 10 15 Average Carried 16 | 2 14 18 19 12 9 9 9 9 10 9 12 Final Capacity 20 | 8 20 20 20 10 10 10 10 10 10 10 15 Final Carried 20 | 5 18 20 20 10 9 10 9 9 10 10 13 Class Distribution -------------------- 88% | Mutant 3% | Scout 3% | Scavenger-Mutant Dominant Class ---------------- Mutant | -10/Materials Mutant | -10/Subcaves Mutant | -9/Scraptown Mutant | -6/Factory Mutant | -6/Lower Caves Mutant | -6/Lower Caves Mutant | -6/Data Miner Mutant | -5/Proximity Caves Mutant | -5/Factory Scout | -5/DSF Scout | -4/Factory Resources | -11 -10 -10 -9 -6 -6 -6 -6 -5 -5 -5 -4 ----------- Run | Yrd Mat Sub Scr Fac Low Low Dat Pro Fac DSF Fac Matter Collected 3306 | 265 646 305 80 1308 79 30 . 60 20 30 483 Remotely 262 | . . . . 214 . . . . . . 48 Salvage Created 4498 | 136 544 388 . 1620 . . . . 24 68 1718 Parts 196 | 8 39 29 . 51 . . . . 3 4 62 Haulers Intercepted 3 | . 2 . . 1 . . . . . . . Recyclers Shooed 9 | 1 3 . . 1 . . . . . . 4 Parts Field Recycled . | . . . . . . . . . . . . Retrieved Matter . | . . . . . . . . . . . . Parts Self-Destructed 16 | . . 7 . . . 4 . 5 . . . Prevented . | . . . . . . . . . . . . Parts Restored . | . . . . . . . . . . . . Kills | -11 -10 -10 -9 -6 -6 -6 -6 -5 -5 -5 -4 ------- Run | Yrd Mat Sub Scr Fac Low Low Dat Pro Fac DSF Fac Combat Hostiles Destroyed 51 | . 11 8 . 19 . . . . . 1 12 Melee 14 | . . . . 2 . . . . . 1 11 Guns 25 | . 9 8 . 8 . . . . . . . Cannons 7 | . 2 . . 4 . . . . . . 1 AOE 5 | . . . . 5 . . . . . . . Classes Destroyed 15 | 3 6 . . 6 . . . . . . . Worker 8 | 1 . . . . . . . . . . 7 Builder 2 | . 2 . . . . . . . . . . Tunneler 5 | 3 1 . . . . . . . 1 . . Hauler 3 | . 2 . . 1 . . . . . . . Recycler 13 | 1 2 . . 4 . . . . . . 6 Mechanic 2 | . . . . 1 . . . . . . 1 Watcher 3 | . 2 . . 1 . . . . . . . Swarmer 9 | . 8 . . . . . . . . . 1 Grunt 15 | . 2 . . 9 . . . . . . 4 Duelist 2 | . . . . 2 . . . . . . . Sentry 5 | . . . . 4 . . . . . . 1 Specialist 3 | . . . . 2 . . . . . 1 . Hunter 3 | . . . . 1 . . . . . . 2 Programmer 5 | . . . . 1 . . . . . . 4 Subdweller 9 | . 1 8 . . . . . . . . . Best Kill Streak 7 | 2 4 2 . 4 . . . . 1 2 7 Combat Bots Only 4 | . 3 2 . 4 . . . . . 1 4 Max Kills in Single Turn 2 | 1 1 1 . 2 . . . . 1 1 1 Gunslinging . | . . . . . . . . . . . . Exploded 2 | . . . . 2 . . . . . . . Melee 1 | . . . . 1 . . . . . 1 1 Uniques/NPCs Destroyed . | . . . . . . . . . . . . Combat | -11 -10 -10 -9 -6 -6 -6 -6 -5 -5 -5 -4 -------- Run | Yrd Mat Sub Scr Fac Low Low Dat Pro Fac DSF Fac Hostile Shots Fired 837 | . 46 39 . 409 . . . 4 . 14 325 Missed 315 | . 10 18 . 145 . . . 2 . 11 129 Hits 522 | . 36 21 . 264 . . . 2 . 3 196 Melee 12 | . . . . 12 . . . . . . . Projectile 510 | . 36 21 . 252 . . . 2 . 3 196 AOE 5 | . . 5 . . . . . . . . . Critical Strikes 14 | . . 1 . 5 . . . . . . 8 Part Disruptions 2 | . . . . 1 . . . . . . 1 Damage Taken 8430 | . 369 651 . 3580 . . . 55 . 101 3674 Core 1985 | . 45 115 . 629 . . . 33 . . 1163 Absorbed by Shields 386 | . . . . 386 . . . . . . . Redirected to Shielding 20 | . 2 18 . . . . . . . . . Ignored by Resistances 59 | . . . . . . . . . . . 59 Regen/Repaired (Parts) 86 | . 86 . . . . . . . . . . Core Remaining (%) 64 | 100 . . 36 . . . . 22 . 100 . Volleys Fired 195 | 13 59 27 . 55 16 5 . 5 . . 15 Largest 3 | 2 2 2 . 3 1 1 . 1 . . 1 Hottest 158 | 80 120 90 . 158 90 90 . 90 . . 80 Shots Fired 372 | 26 113 53 . 139 16 5 . 5 . . 15 Gun 271 | 26 94 53 . 97 . . . . . . 1 Cannon 85 | . 14 . . 33 15 5 . 5 . . 13 Launcher 10 | . . . . 9 . . . . . . 1 Special 6 | . 5 . . . 1 . . . . . . Kinetic 191 | . 50 25 . 103 . . . . . . 13 Thermal 125 | 26 63 . . 10 15 5 . 5 . . 1 Explosive 10 | . . . . 9 . . . . . . 1 Electromagnetic 45 | . . 28 . 17 . . . . . . . Robot Hit Streak 19 | 6 7 14 . 19 2 . . . . . 7 Robot Miss Streak 5 | 2 5 2 . 3 . . . . . . 2 Penetration Max 1 | . . . . . . . . . . . 1 Secondary Targets 2 | . . . . 2 . . . . . . . Max Gunslinging Chain 1 | . . . . 1 . . . . . . . Shots Hit Robots 330 | 15 70 41 . 118 1 1 . 5 1 1 77 Core Hits 164 | 7 24 20 . 73 . 1 . . 1 1 37 Critical Kills . | . . . . . . . . . . . . Critical Parts Destroyed 3 | . . . . . . . . . . . 3 Critical Strikes 7 | . . . . 2 . . . 1 . . 4 Blast 1 | . . . . . . . . . . . 1 Smash 4 | . . . . . . . . 1 . . 3 Melee Attacks 196 | . 15 26 . 17 15 14 . 11 1 2 95 Impact 54 | . 15 26 . . . . . 1 . 1 11 Slashing 142 | . . . . 17 15 14 . 10 1 1 84 Piercing . | . . . . . . . . . . . . Sneak Attacks 35 | . 3 . . 7 . . . 1 1 1 22 Combat Hostiles . | . . . . . . . . . . . . Follow-up Attacks 7 | . . . . . . . . 1 . . 6 Damage Inflicted 11712 | 167 1187 583 . 4693 . 61 . 265 90 74 4592 Guns 3063 | 166 729 583 . 1560 . . . . . . 25 Cannons 1420 | . 157 . . 760 . . . . . . 503 Explosions 2080 | . . . . 1711 . . . . . . 369 Melee 5100 | . 253 . . 662 . 61 . 265 90 74 3695 Ramming 49 | 1 48 . . . . . . . . . . Kinetic 3017 | . 466 272 . 1776 . . . . . . 503 Thermal 1101 | 166 420 . . 490 . . . . . . 25 Explosive 1812 | . . . . 1443 . . . . . . 369 Electromagnetic 633 | . . 311 . 322 . . . . . . . Impact 671 | . 253 . . . . . . 41 . . 377 Slashing 4429 | . . . . 662 . 61 . 224 90 74 3318 Piercing . | . . . . . . . . . . . . Highest Corruption 9 | . . . . 1 1 1 1 1 . . 9 Average Corruption 2 | . . . . 1 1 1 1 1 . . 5 Corruption Purged . | . . . . . . . . . . . . Corruption Blocked . | . . . . . . . . . . . . Effects 25 | . . . . 4 4 1 . 2 . . 14 Message Errors 7 | . . . . 2 1 . . . . . 4 Matter Fused 4 | . . . . . 1 . . . . . 3 Heat Flow Errors 5 | . . . . 1 . . . 2 . . 2 Energy Discharges 6 | . . . . . 2 1 . . . . 3 Data Loss (minor) 3 | . . . . 1 . . . . . . 2 Overload Shots . | . . . . . . . . . . . . Overflow Damage 1057 | . 120 . . 103 . . . 84 . . 750 Projectiles 48 | . 12 . . . . . . . . . 36 Explosions 7 | . . . . 7 . . . . . . . Melee 1002 | . 108 . . 96 . . . 84 . . 714 Knockbacks 12 | . 3 . . 6 . . . . . . 3 Impact 3 | . 2 . . . . . . . . . 1 Kinetic 9 | . 1 . . 6 . . . . . . 2 Secondary . | . . . . . . . . . . . . Self-Inflicted Damage 240 | . . . . 240 . . . . . . . Shots 5 | . . . . 5 . . . . . . . Rammed 7 | 1 6 . . . . . . . . . . Targets Rammed 7 | 1 6 . . . . . . . . . . Kicked . | . . . . . . . . . . . . Crushed . | . . . . . . . . . . . . Highest Temperature 353 | 21 90 . . 353 . . . 176 . . 110 Average Temperature 71 | 7 19 . . 121 . . . 103 . . 23 Received Heat Transfer 1825 | . 63 102 . 933 . . . 9 . . 718 Effects 2 | . . . . 2 . . . . . . . Shutdowns 1 | . . . . 1 . . . . . . . Energy Bleed 1 | . . . . 1 . . . . . . . Siege Activations . | . . . . . . . . . . . . Martial Activations . | . . . . . . . . . . . . Shielding Activations . | . . . . . . . . . . . . Robots Disrupted 1 | . . . . . . . . . . . 1 Combat Hostiles 1 | . . . . . . . . . . . 1 Robots Corrupted 2 | . 2 . . . . . . . . . . Combat Hostiles . | . . . . . . . . . . . . Parts Fried 3 | . 2 1 . . . . . . . . . Impact Corruptions 9 | . 4 . . . . . . . . . 5 Robots Melted . | . . . . . . . . . . . . Combat Hostiles . | . . . . . . . . . . . . Parts Melted 5 | . 1 . . 3 . . . . . . 1 Heat Transferred 2008 | 375 934 . . 662 . . . . . . 37 Parts Sabotaged 3 | . . . . 3 . . . . . . . Parts Stolen . | . . . . . . . . . . . . Parts Stripped . | . . . . . . . . . . . . Power Chain Reactions 2 | . . . . 2 . . . . . . . Alert | -11 -10 -10 -9 -6 -6 -6 -6 -5 -5 -5 -4 ------- Run | Yrd Mat Sub Scr Fac Low Low Dat Pro Fac DSF Fac Maximum Alert Level 2 | . . . . 1 . . . . . . 2 Low Security (%) 85 | 100 100 . . 89 . . . . 100 100 28 Level 1 9 | . . . . 10 . . . . . . 34 Level 2 5 | . . . . . . . . . . . 36 Level 3 . | . . . . . . . . . . . . Level 4 . | . . . . . . . . . . . . Level 5 . | . . . . . . . . . . . . High Security . | . . . . . . . . . . . . Max Security . | . . . . . . . . . . . . Sterilizations 1 | . . . . 1 . . . . . . . Peak Influence 475 | 10 76 . . 232 . . . . 9 30 475 Initial 12 | . . . . . . . . . 9 3 12 Average 81 | . 13 . . 89 . . . . 7 25 269 Influence Increases 2229 | 25 318 . . 801 . . . 62 6 42 975 Destroy 0b10 Robot/C 880 | . 200 . . 380 . . . 40 . 20 240 Destroy 0b10 Robot/NC 180 | 25 45 . . 35 . . . . 5 . 70 Destroy Leader 232 | . 38 . . 104 . . . 10 . . 80 Allied During Kill 18 | . . . . . . . . 12 1 5 . Successful Hack 69 | . 5 . . 14 . . . . . . 50 Disable Machine 30 | . . . . 15 . . . . . . 15 Anti-Garrison Action 200 | . . . . . . . . . . . 200 Destroy Structure 185 | . 15 . . 118 . . . . . 2 50 Lose Combat Pursuer 435 | . 15 . . 135 . . . . . 15 270 Influence Decreases 1821 | 25 318 . . 667 134 . . 47 16 22 592 Entered New Map 72 | . . . . . 51 . . . 6 2 13 Time Decay 1189 | 25 308 . . 427 83 . . 47 10 . 289 Lost Part 540 | . 10 . . 240 . . . . . . 290 Lost Ally 20 | . . . . . . . . . . 20 . Squads Dispatched 14 | . . . . 7 . . . . . 1 6 Investigation 1 | . . . . . . . . . . . 1 Extermination 2 | . . . . 1 . . . . . . 1 Reinforcement 5 | . . . . 3 . . . . . 1 1 Assault 2 | . . . . 2 . . . . . . . Garrison 4 | . . . . 1 . . . . . . 3 Intercept . | . . . . . . . . . . . . Searches Triggered . | . . . . . . . . . . . . Construction Impeded 1 | . . . . . . . . . . . 1 Haulers Reinforced 1 | . . . . 1 . . . . . . . Active Scanning Responses . | . . . . . . . . . . . . Cargo Convoy Interrupts . | . . . . . . . . . . . . Stealth | -11 -10 -10 -9 -6 -6 -6 -6 -5 -5 -5 -4 --------- Run | Yrd Mat Sub Scr Fac Low Low Dat Pro Fac DSF Fac Distress Signals 9 | . 1 . . 2 . . . . . . 6 Communications Jammed . | . . . . . . . . . . . . Distress Signals . | . . . . . . . . . . . . Times Spotted 127 | . 21 10 . 40 1 . . 2 . 4 49 Peak Tracking Total 11 | . 3 4 . 8 1 . . 1 . 3 11 Tactical Retreats 11 | . 1 . . 3 . . . . . 1 6 Traps | -11 -10 -10 -9 -6 -6 -6 -6 -5 -5 -5 -4 ------- Run | Yrd Mat Sub Scr Fac Low Low Dat Pro Fac DSF Fac Traps Triggered 4 | . 1 . . 1 . . . . . 1 1 Indirectly . | . . . . . . . . . . . . Trap Hack Attempts . | . . . . . . . . . . . . Triggered . | . . . . . . . . . . . . Disarmed . | . . . . . . . . . . . . Reprogrammed . | . . . . . . . . . . . . Reused . | . . . . . . . . . . . . Traps Extracted . | . . . . . . . . . . . . Installed . | . . . . . . . . . . . . Triggered . | . . . . . . . . . . . . Machines | -11 -10 -10 -9 -6 -6 -6 -6 -5 -5 -5 -4 ---------- Run | Yrd Mat Sub Scr Fac Low Low Dat Pro Fac DSF Fac Machines Disabled 7 | . . 1 . 5 . . . . . . 1 Max in Single Turn 2 | . . 1 . 2 . . . . . . 1 Garrison Access 4 | . . . . 3 . . . . . . 1 Machines Repaired . | . . . . . . . . . . . . Machines Dismantled . | . . . . . . . . . . . . Machines Sabotaged . | . . . . . . . . . . . . Overloaded Fab Kills . | . . . . . . . . . . . . Hacking | -11 -10 -10 -9 -6 -6 -6 -6 -5 -5 -5 -4 --------- Run | Yrd Mat Sub Scr Fac Low Low Dat Pro Fac DSF Fac Machines Accessed 30 | . 5 2 6 4 . 2 4 . 1 . 6 Terminals 10 | . 2 . . 2 . 1 . . 1 . 4 Fabricators . | . . . . . . . . . . . . Repair Stations 1 | . 1 . . . . . . . . . . Recycling Units 3 | . 2 . . 1 . . . . . . . Scanalyzers 2 | . . . . 1 . . . . . . 1 Garrison Access 1 | . . . . . . . . . . . 1 Total Hacks 97 | . 10 3 31 8 . 2 29 . 1 . 13 Successful 78 | . 7 3 31 1 . 2 29 . 1 . 4 Failed 18 | . 3 . . 7 . . . . . . 8 Catastrophic 4 | . . . . 3 . . . . . . 1 Database Lockouts 1 | . . . . . . . . . . . 1 Manual 7 | . . . . 4 . . . . . . 3 Terminals 19 | . 4 . . 5 . 1 . . 1 . 8 Fabricators . | . . . . . . . . . . . . Repair Stations 3 | . 3 . . . . . . . . . . Recycling Units 4 | . 3 . . 1 . . . . . . . Scanalyzers 4 | . . . . 2 . . . . . . 2 Garrison Access 3 | . . . . . . . . . . . 3 Terminal Hacks 70 | . 2 3 31 1 . 2 29 . 1 . 1 Record 33 | . . 1 20 . . 1 11 . . . . Part Schematic 11 | . . . . . . . 11 . . . . Robot Schematic 4 | . . . . . . . 4 . . . . Robot Analysis 9 | . . . 9 . . . . . . . . Prototype ID Bank 3 | . . . . . . . 3 . . . . Open Door 3 | . . 1 1 . . 1 . . . . . Open DSF 1 | . . . . . . . . . 1 . . Locate Traps 3 | . 1 . . 1 . . . . . . 1 Hauler Manifests 1 | . 1 . . . . . . . . . . Proto ID Catalog 1 | . . . 1 . . . . . . . . Release Object 1 | . . 1 . . . . . . . . . Fabricator Hacks . | . . . . . . . . . . . . Repair Station Hacks 3 | . 3 . . . . . . . . . . Scan Component 2 | . 2 . . . . . . . . . . Repair 1 | . 1 . . . . . . . . . . Recycling Unit Hacks 2 | . 2 . . . . . . . . . . Retrieve Components 2 | . 2 . . . . . . . . . . Scanalyzer 1 | . . . . . . . . . . . 1 Retrieve Study 1 | . . . . . . . . . . . 1 Garrison Access Hacks . | . . . . . . . . . . . . Unauthorized Hacks 2 | . . . . . . . . . . . 2 Terminals 1 | . . . . . . . . . . . 1 Botnet 1 | . . . . . . . . . . . 1 Fabricators . | . . . . . . . . . . . . Repair Stations . | . . . . . . . . . . . . Recycling Units . | . . . . . . . . . . . . Scanalyzers . | . . . . . . . . . . . . Garrison Access 1 | . . . . . . . . . . . 1 Jam 1 | . . . . . . . . . . . 1 Data Cores Recovered . | . . . . . . . . . . . . Used . | . . . . . . . . . . . . Hacking Detections 13 | . 3 . . 4 . . . . . . 6 Full Trace Events . | . . . . . . . . . . . . Feedback Events . | . . . . . . . . . . . . Feedback Blocked . | . . . . . . . . . . . . Robot Schematics Acquired 4 | . . . . . . . 4 . . . . Robots Built . | . . . . . . . . . . . . Authchips . | . . . . . . . . . . . . Time . | . . . . . . . . . . . . Total Robot Build Rating . | . . . . . . . . . . . . Part Schematics Acquired 11 | . . . . . . . 11 . . . . Parts Built . | . . . . . . . . . . . . Authchips . | . . . . . . . . . . . . Time . | . . . . . . . . . . . . Total Part Build Rating . | . . . . . . . . . . . . Part Studies Acquired 1 | . . . . . . . . . . . 1 Parts Repaired 1 | . 1 . . . . . . . . . . Time 26 | . 26 . . . . . . . . . . Parts Recycled . | . . . . . . . . . . . . Recycled Matter . | . . . . . . . . . . . . Retrieved Matter . | . . . . . . . . . . . . Retrieved Components 12 | . 12 . . . . . . . . . . Parts Scanalyzed . | . . . . . . . . . . . . Part Schematics Acquired . | . . . . . . . . . . . . Parts Damaged . | . . . . . . . . . . . . Bothacking | -11 -10 -10 -9 -6 -6 -6 -6 -5 -5 -5 -4 ------------ Run | Yrd Mat Sub Scr Fac Low Low Dat Pro Fac DSF Fac Used RIF Installer . | . . . . . . . . . . . . Robots Hacked 1 | . . . . . 1 . . . . . . Non-combat 1 | . . . . . 1 . . . . . . Combat . | . . . . . . . . . . . . Robot Hacks Applied 1 | . . . . . 1 . . . . . . parse_system 1 | . . . . . 1 . . . . . . Relay Couplers Released 3 | . . . . 3 . . . . . . . Machine Destruction 3 | . . . . 3 . . . . . . . Fabnet Peak Effective % . | . . . . . . . . . . . . Robots Rewired . | . . . . . . . . . . . . Allies Hacked . | . . . . . . . . . . . . Hacks Repelled . | . . . . . . . . . . . . Allies | -11 -10 -10 -9 -6 -6 -6 -6 -5 -5 -5 -4 -------- Run | Yrd Mat Sub Scr Fac Low Low Dat Pro Fac DSF Fac Total Allies 1 | . . . . . . . . 1 . . . Largest Group 1 | . . . . . . . . 1 1 1 . Highest-Rated Group 96 | . . . . . . . . 96 96 96 . Highest-Rated Ally 96 | . . . . . . . . 96 96 96 . Initial UFD Resources 30 | . . . . 24 24 24 24 26 26 26 30 Total Orders . | . . . . . . . . . . . . Ally Attacks 21 | . . . . . . . . 14 . 7 . Total Damage 705 | . . . . . . . . 428 . 277 . Kills 2 | . . . . . . . . 2 . . . Allies Corrupted . | . . . . . . . . . . . . Allies Melted . | . . . . . . . . . . . . Intel | -11 -10 -10 -9 -6 -6 -6 -6 -5 -5 -5 -4 ------- Run | Yrd Mat Sub Scr Fac Low Low Dat Pro Fac DSF Fac Active Infowar (turns) 11253 | 1 1473 2147 4779 1187 404 257 45 295 28 69 568 Optics 1464 | . 877 . . 479 . . . . . . 108 Sensors 9149 | . 6 2147 4779 796 404 257 45 295 28 69 323 Terrain 496 | . . . . . . . . . 5 69 422 Seismic 591 | 1 590 . . . . . . . . . . Machine Analysis 227 | . . . . 105 . . . . . . 122 Robot Analysis Total 9 | . . . 9 . . . . . . . . Derelict Logs Recovered 2 | . . 1 . . . . . 1 . . . Drone Launches . | . . . . . . . . . . . . Drone Recoveries . | . . . . . . . . . . . . Exploration | -11 -10 -10 -9 -6 -6 -6 -6 -5 -5 -5 -4 ------------- Run | Yrd Mat Sub Scr Fac Low Low Dat Pro Fac DSF Fac Turns Passed 13031 | 198 1823 2486 4779 1947 406 257 45 295 28 69 698 Spaces Moved 7811 | 92 833 940 1986 1603 621 409 87 428 46 98 668 Core 6 | 4 . . . . . . . . . . 2 Treads 4359 | 88 833 940 1986 512 . . . . . . . Legs . | . . . . . . . . . . . . Wheels 56 | . . . . 56 . . . . . . . Hover 3390 | . . . . 1035 621 409 87 428 46 98 666 Flight . | . . . . . . . . . . . . Fastest Speed 45 | 50 160 240 240 45 51 51 51 51 51 50 48 Average Speed 145 | 155 174 240 240 95 52 51 51 51 51 50 55 Slowest Speed 450 | 160 240 250 240 240 101 51 101 101 51 52 450 Overloaded Moves 1 | . . . . 1 . . . . . . . Propulsion Burnouts . | . . . . . . . . . . . . Robots Hopped . | . . . . . . . . . . . . Potential Cave-ins 2 | . . . . . . 2 . . . . . Cave-ins Triggered . | . . . . . . . . . . . . Exploration Rate (%) 52 | 5 97 47 91 44 77 54 70 50 3 79 13 Regions Visited 11 Branch Regions 6 Pre-discovered Areas 2 | . . 1 . . . . 1 . . . . Known Exits Taken 6 | . . . . 1 1 1 1 1 1 . . Unknown Exits Taken 4 | 1 1 1 1 . . . . . . . . Scrap Searched 24 | . . 3 12 . 4 2 . 3 . . . Spaces Dug 82 | . 12 18 . 1 20 13 . 5 . . 13 Terrain Destroyed 237 | . 12 18 . 126 30 18 . 9 . . 24 Melee 72 | . 8 18 . 1 15 13 . 4 . . 13 Projectile 41 | . 4 . . 9 15 5 . 5 . . 3 AOE 124 | . . . . 116 . . . . . . 8 Terrain Rammed . | . . . . . . . . . . . . Walls Destroyed . | . . . . . . . . . . . . Machines Disabled . | . . . . . . . . . . . . Actions | -11 -10 -10 -9 -6 -6 -6 -6 -5 -5 -5 -4 --------- Run | Yrd Mat Sub Scr Fac Low Low Dat Pro Fac DSF Fac Total 8825 | 118 1065 1070 2003 1879 665 432 87 485 48 114 859 Wait 243 | . 59 36 . 76 3 . . 31 . . 38 Move 7800 | 91 832 939 1985 1602 620 408 86 427 45 97 668 Hop . | . . . . . . . . . . . . Pick Up 88 | 6 30 1 5 30 . . . . . 3 13 Fast Attach 68 | 6 10 . 1 28 1 . . 2 1 6 13 Attach 42 | 1 2 2 . 14 4 2 1 3 . 2 11 Detach 27 | . 2 1 1 8 4 3 . 3 1 1 3 Swap 83 | . 24 25 3 24 1 . . 1 . . 5 Drop 85 | . 26 13 8 24 1 . . 3 . 4 6 Fire 195 | 13 59 27 . 55 16 5 . 5 . . 15 Melee 186 | . 15 26 . 17 15 14 . 10 1 1 87 Ram . | . . . . . . . . . . . . Kick . | . . . . . . . . . . . . Crush 7 | 1 6 . . . . . . . . . . Escape Stasis . | . . . . . . . . . . . . Rewire . | . . . . . . . . . . . . Trap . | . . . . . . . . . . . . Miscellaneous 1 | . . . . 1 . . . . . . . Route ------- -11/Scrapyard -10/Materials (discovered 5 exits: [*Mat x3] / [*Min] / *Sub) -10/Subcaves -9/Scraptown (discovered 2 exits: *Fac x2) -6/Factory (discovered 3 exits: *Fac x2 / *Low) -6/Lower Caves -6/Lower Caves -6/Data Miner -5/Proximity Caves -5/Factory -5/DSF -4/Factory History --------- Turn | Location | Event 7 | -11/Scrapyard | Discovered new exit (range 15) 199 | -11/Scrapyard | Entered Materials 308 | -10/Materials | Build established: Mutant 545 | -10/Materials | Discovered new exit (range 16) 694 | -10/Materials | Discovered new exit (range 16) 899 | -10/Materials | Derelicts attacked the area 923 | -10/Materials | Discovered new exit (range 11) 1488 | -10/Materials | Repaired Lgt. Treads 1499 | -10/Materials | Discovered new exit (range 6) 1744 | -10/Materials | Discovered new exit (range 9) 2022 | -10/Materials | Entered Subcaves 2023 | -10/Subcaves | Approached by a straggling Scientist 2030 | -10/Subcaves | Learned location of Zion (-7) 2194 | -10/Subcaves | Shifting Twisted Machinery released Sub. Laser 2568 | -10/Subcaves | Disturbed a concealed Subdweller 2825 | -10/Subcaves | Shifting Twisted Machinery released Sub. Monowheel 2826 | -10/Subcaves | Shifting Twisted Machinery released Sub. Beam Cannon 3812 | -10/Subcaves | A Subdweller sparked back to life 3812 | -10/Subcaves | A Subdweller sparked back to life 3812 | -10/Subcaves | A Subdweller sparked back to life 3814 | -10/Subcaves | Ambushed by Subdweller buried in earth 3838 | -10/Subcaves | Core integrity fell below 50% 4380 | -10/Subcaves | Found SUBCON Basin 4508 | -10/Subcaves | Entered Scraptown 4917 | -9/Scraptown | Discovered new exit (range 13) 5227 | -9/Scraptown | Visited Cyclists 5308 | -9/Scraptown | Visited Bundlers 5463 | -9/Scraptown | Visited Artisan Demo Area 5651 | -9/Scraptown | Visited TADAMA 5768 | -9/Scraptown | Visited Shadow of the Wyrm 6443 | -9/Scraptown | Visited Fellowship of the Rings 6827 | -9/Scraptown | Visited UFD Registry 6827 | -9/Scraptown | Registered with UFD as "Hellbank" 7350 | -9/Scraptown | Visited Botcube Research 7388 | -9/Scraptown | Visited Science Guys 7470 | -9/Scraptown | Visited Sword Containment 7495 | -9/Scraptown | Found Prototype Slashing Weapon 7495 | -9/Scraptown | Identified Companion Sword 7592 | -9/Scraptown | Visited DA-N13 Charitable Foundation 7604 | -9/Scraptown | Found DCF Scrap (30 items) 7692 | -9/Scraptown | Visited Scrap Suit Storage 7798 | -9/Scraptown | Visited Scrapoid Pod Storage 7846 | -9/Scraptown | Visited Junk Repository 7960 | -9/Scraptown | Visited Infowarlord's Domain 7973 | -9/Scraptown | Found Exp. Signal Interpreter 8017 | -9/Scraptown | Visited Analyses Database 8690 | -9/Scraptown | Entered Cyclist Reading Room 9002 | -9/Scraptown | Visited LU-1G1's Boring Crew 9266 | -9/Scraptown | Discovered new exit (range 5) 9287 | -9/Scraptown | Entered Factory 9287 | -6/Factory | Evolved 8 slots: Power x1, Propulsion x3, Utility x3, Weapon x1 9294 | -6/Factory | Released subatomizers from SUBCON Basin 9894 | -6/Factory | Garrison activated, responded to threat 10305 | -6/Factory | Sterilization system engaged 10305 | -6/Factory | Non-combat units ordered to evacuate 10405 | -6/Factory | Combat units ordered to evacuate 10482 | -6/Factory | Lost 10 parts (2p5n2u1w) 10527 | -6/Factory | Core integrity fell below 50% 10557 | -6/Factory | Lost 7 parts (1p1n2u3w) 10605 | -6/Factory | Ambient heat levels rising (+10) 10611 | -6/Factory | Lost 4 parts (3n1u) 10755 | -6/Factory | Ambient heat levels rising (+10) 10778 | -6/Factory | Discovered new exit (range 12) 10785 | -6/Factory | Discovered new exit (range 8) 10785 | -6/Factory | Identified exit to Factory 10788 | -6/Factory | Identified exit to Lower Caves 10905 | -6/Factory | Ambient heat levels rising (+10) 11004 | -6/Factory | Discovered exit to Factory (range 14) 11029 | -6/Factory | Found Prototype Launcher 11029 | -6/Factory | Identified Scatter Rocket Array 11055 | -6/Factory | Ambient heat levels rising (+10) 11205 | -6/Factory | Ambient heat levels rising (+10) 11234 | -6/Factory | Entered Lower Caves 11284 | -6/Lower Caves | Encountered a Warlord checkpoint 11582 | -6/Lower Caves | Attracted the attention of an 0b10 checkpoint 11634 | -6/Lower Caves | Discovered new exit (range 10) 11638 | -6/Lower Caves | Identified exit to Lower Caves 11640 | -6/Lower Caves | Entered another Lower Caves area 11804 | -6/Lower Caves | Entered a destroyed Warlord outpost 11862 | -6/Lower Caves | Discovered new exit (range 14) 11869 | -6/Lower Caves | Identified exit to Data Miner 11897 | -6/Lower Caves | Entered Data Miner 11897 | -6/Data Miner | Discovered new exit (range 6) 11907 | -6/Data Miner | Met Data Miner 11917 | -6/Data Miner | Learned location of Section 7 (-3) 11917 | -6/Data Miner | Acquired the access code to Warlord's prototype stash 11927 | -6/Data Miner | Received God Mode back door access code from Data Miner 11940 | -6/Data Miner | Identified exit to Proximity Caves 11942 | -6/Data Miner | Entered Proximity Caves 12055 | -5/Proximity Caves | Escorted by Enhanced Grunt 12207 | -5/Proximity Caves | Attracted the attention of an 0b10 checkpoint 12224 | -5/Proximity Caves | Discovered exit to Factory (range 3) 12225 | -5/Proximity Caves | Learned Factory terminal intel 12237 | -5/Proximity Caves | Entered Factory 12237 | -5/Factory | Accompanied by 1 ally 12237 | -5/Factory | Evolved 2 slots: Utility x2 12238 | -5/Factory | Loaded intel: 24 terminal locations 12265 | -5/Factory | Identified exit to DSF 12265 | -5/Factory | Entered DSF 12265 | -5/DSF | Accompanied by 1 ally 12292 | -5/DSF | Additional patrols routed to DSF 12318 | -5/DSF | Discovered new exit (range 15) 12334 | -5/DSF | Identified exit to Factory 12334 | -5/DSF | Entered Factory 12334 | -4/Factory | Evolved 2 slots: Propulsion x1, Utility x1 12426 | -4/Factory | Central database locked down 12618 | -4/Factory | Garrison activated, responded to threat 12839 | -4/Factory | Core integrity fell below 50% 12891 | -4/Factory | Lost 16 parts (4p4n6u2w) 13013 | -4/Factory | Core integrity fell below 20% 13032 | -4/Factory | Destroyed by Y-64 Sentinel with KE Penetrator Last Messages --------------- 13007_ G-73 Enforcer destroyed. 13008_ Acquired 68 matter. 13009_ 76UDFPX7DG3LJGUWN43D#JYIZNCVUY 13009_ Imp. Gyrokinetic Inverter+ destroyed. 13009_ Penetrated by Slug. 13010_ Slug penetrates Wall. 13012_ Penetrated by Slug. 13012_ Imp. Focal Shield destroyed. 13012_ Penetrated by Slug. 13015_ Slug penetrates Wall. 13016_ Y-64 Sentinel destroyed. 13018_ U-05 Engineer builds a Wall. 13018_ Penetrated by Slug. 13018_ Imp. Gyrokinetic Inverter+ destroyed. 13021_ Companion Sword destroyed. Companion Sword: "My time is up..." 13021_ Adv. Heat Sink destroyed. 13021_ Penetrated by Slug. 13024_ Mic. Fission Core destroyed. 13031_ System corrupted: Component data lost. Map ----- +----------------------------------------------------+ | ????????????# #?#?????# #????????????????????????? | | ? ###########+##??????# #????????????????????????? | | ? # #????#?# #????????????????????????? | | ??# #??????# #?#??????????????????????? | | ??# """"""""" #?????## #???????#????????????????? | | ??# ######## #????? ##????""""???????? | | ??# """"""""" #! ## #### #????""""???????? | | ??# # #????""""???????? | | ??# """"""""" / " +????""""???????? | | ??# # #???????????????? | | ??#= """"""""" #! ####### #???????????????? | | ??# ###/###########+###???????????????? | | ??# """"""""" ## #???????????????? | | ??# ## """ """ #???????????????? | | ??############### """ """ #???????????????? | | ????????????????# ! """ """ #???????????????? | | ????????????????# ! #???????????????? | | ????????????????# ! """ """ #???????????????? | | ????????????????# """ """ #???????????????? | | ??#????????#????# """ """ #??????? ???????? | | ?#??????????????# ! #???????????????? | | ??????????????#?#######+#/############# | | ?????????????????#????# gY[%! #????????? | | ???????????????#??????# %[=%#############????????? | | ?????????????###???####% %!!##############???????? | | ????????????## ##### ## @ # #???????? | | ????????????# # # #???????? | | """?"""???#?## """ #% u# #???????? | | """?"""???#??# """ # # #???????? | | """?"""??????# """ # # #???????? | | ?????????????# # % % # #???????? | | """?"""??????# # + "" #???????? | | """?"""??????# ! + % # "" #???????? | | """?"""??????# !! # % # """ #???????? | | ??????????#??# !! # # """ #???????? | | ?????????????########## # " """?? #???????? | | ?????? ???? # ???????????? | | ???????????? ###########??????????? | | ???????????? #?????#??????????????? | | ???????????? #????????#???????????? | | ???????????? #?###????????????????? | | ????????????########### ### #######??????????? | | ?????????????# # # """ # ?????????? | | ???????? ????# """ # w # """ #??????????? | | ?????????????# "T" # # """ #??????????? | | ?????????????# " " # # #??"???????? | | ?????????????# + + " " #? ????????? | | ????????????## """ # # "G" #??????????? | | ?????????????# """ # # " #??????????? | | ?????????????# ! """ # # #??????????? | +----------------------------------------------------+ Best States ------------- Heat Dissipation 62 Energy Generation 33 Energy Capacity 525 Matter Stores 300 Matter Capacity 300 Sight Range 22 Robot Scan Range 15 Terrain Scan Range 16 Terrain Scan Density 10 Armor Coverage 225 Resistance: KI 25 Core Shielding 20 Melee Speed Boost 20 Evasion (%) 63 Targeting Accuracy 12 Target Analysis 6 Recoil Reduction 9 Item Schematics ----------------- Combat Drone Bay | -6/Data Miner | Free Lgt. Regenerative Plating | -6/Data Miner | Free Cld. Gravmag System | -6/Data Miner | Free Prc. Matter Filter | -6/Data Miner | Free Cld. Plasma Rifle | -6/Data Miner | Free Imp. Heavy Treads | -6/Data Miner | Free Adv. Power Amplifier | -6/Data Miner | Free Adv. Datajack | -6/Data Miner | Free Adv. Hacking Suite | -6/Data Miner | Free Lrn. Sensor Array | -6/Data Miner | Free Adv. Remote Force Field | -6/Data Miner | Free Robot Schematics ------------------ B-60 Warrior | -6/Data Miner | Free R-10 Processor | -6/Data Miner | Free B-48 Gladiator | -6/Data Miner | Free H-66 Slayer | -6/Data Miner | Free Fabricated ------------ Nothing Repaired ---------- Lgt. Treads | 38% | -10/Materials Studied --------- Imp. Gyrokinetic Inverter | -4/Factory | Hacked Alien Tech Used ----------------- None Achievements -------------- Into The Furnace Pestilence Challenges ------------ None Game ------ Seed GravitonCouplerAutocannon Manual? 0 Play Time 02:23:30 Cumulative 390.5 hours Start 2026.07.18 @ 19:25:32 End 2026.07.19 @ 17:23:29 Sessions 7 Manual Loads 0 Difficulty Rogue Special Mode None Game No. 112 Rogue 112 Adventurer 0 Explorer 0 Win Type - Total 3 Types 3/0/0/0/0/0/0/0/0/0 Lore% 71 Gallery% 62 Achievement% 53 Wizard Run 0 Options --------- Layout 0 ASCII 1 Keyboard 1 Movement Arrows Keybinds 0 Fullscreen 1 Font 24/Smallcaps Map View 76x50 Zoom Use 0% Tactical HUD 1 Map Filters NONE Filters NONE Steam 1 RUN: 0e1024ab-99b2-415d-bb59-e84e40bc43ad